[Event "*** SCC Grand Prix: Titled Tuesday Blitz"]
[Site "Chess.com"]
[Date "2020.08.11"]
[Round "4"]
[White "Isajevsky_Anton"]
[Black "Nemsko"]
[Result "1-0"]
[WhiteElo "2601"]
[BlackElo "2341"]
[TimeControl "180+1"]
[EndTime "10:42:03 PDT"]
[Termination "Isajevsky_Anton won by checkmate"]

1. c4 {[%clk 0:03:00.9]} 1... e5 {[%clk 0:02:59.6]} 2. g3 {[%clk 0:03:00.8]}
2... Nc6 {[%clk 0:02:59.6]} 3. Bg2 {[%clk 0:03:00.8]} 3... Bc5 {[%clk
0:03:00.3]} 4. Nc3 {[%clk 0:03:00.6]} 4... a6 {[%clk 0:02:58.9]} 5. Nf3 {[%clk
0:02:55.9]} 5... d6 {[%clk 0:02:57.7]} 6. O-O {[%clk 0:02:54.8]} 6... Nf6 {[%clk
0:02:55.4]} 7. e3 {[%clk 0:02:53.2]} 7... Ba7 {[%clk 0:02:55.8]} 8. d4 {[%clk
0:02:53]} 8... O-O {[%clk 0:02:50.8]} 9. h3 {[%clk 0:02:49]} 9... h6 {[%clk
0:02:50]} 10. b3 {[%clk 0:02:44.9]} 10... Re8 {[%clk 0:02:48.2]} 11. Bb2 {[%clk
0:02:44.1]} 11... Bd7 {[%clk 0:02:47.7]} 12. Kh2 {[%clk 0:02:43.7]} 12... Qe7
{[%clk 0:02:39.6]} 13. Nd5 {[%clk 0:02:29.9]} 13... Qd8 {[%clk 0:02:33.8]} 14.
Nxf6+ {[%clk 0:02:27.7]} 14... Qxf6 {[%clk 0:02:33.7]} 15. dxe5 {[%clk
0:02:27.6]} 15... Qe6 {[%clk 0:02:15.5]} 16. exd6 {[%clk 0:02:20.2]} 16... cxd6
{[%clk 0:02:16.4]} 17. Qd2 {[%clk 0:02:16.5]} 17... Rad8 {[%clk 0:02:09.9]} 18.
Rad1 {[%clk 0:02:15.7]} 18... Bc8 {[%clk 0:02:09.6]} 19. Nd4 {[%clk 0:02:12.9]}
19... Nxd4 {[%clk 0:02:08.9]} 20. Bxd4 {[%clk 0:02:13.8]} 20... Bb8 {[%clk
0:02:02.7]} 21. Qb2 {[%clk 0:02:05.2]} 21... Qg6 {[%clk 0:01:58.6]} 22. Bc3
{[%clk 0:01:27.4]} 22... h5 {[%clk 0:01:56.6]} 23. Rd4 {[%clk 0:01:27]} 23... b5
{[%clk 0:01:35]} 24. Rfd1 {[%clk 0:01:15.1]} 24... Ba7 {[%clk 0:01:16.9]} 25.
Rf4 {[%clk 0:01:13.6]} 25... Be6 {[%clk 0:01:09.4]} 26. cxb5 {[%clk 0:01:09.3]}
26... axb5 {[%clk 0:01:08.9]} 27. Bd5 {[%clk 0:01:02.8]} 27... Bb8 {[%clk
0:01:02.9]} 28. Qd2 {[%clk 0:00:58.2]} 28... Rc8 {[%clk 0:00:56.3]} 29. Rd4
{[%clk 0:00:35.5]} 29... Qf5 {[%clk 0:00:32.5]} 30. Bxe6 {[%clk 0:00:35.7]}
30... fxe6 {[%clk 0:00:30.5]} 31. e4 {[%clk 0:00:35.4]} 31... Qf3 {[%clk
0:00:29.2]} 32. Bb4 {[%clk 0:00:24.9]} 32... Rf8 {[%clk 0:00:23.5]} 33. Kg1
{[%clk 0:00:20.1]} 33... h4 {[%clk 0:00:22.5]} 34. Rd3 {[%clk 0:00:19.5]} 34...
Qxe4 {[%clk 0:00:19.3]} 35. Re1 {[%clk 0:00:19.7]} 35... Qg6 {[%clk 0:00:16.6]}
36. g4 {[%clk 0:00:19.8]} 36... Rfd8 {[%clk 0:00:13]} 37. Bxd6 {[%clk
0:00:18.7]} 37... Rc6 {[%clk 0:00:10.1]} 38. Bxb8 {[%clk 0:00:13.5]} 38... Qxd3
{[%clk 0:00:09.2]} 39. Qf4 {[%clk 0:00:12.2]} 39... Rf8 {[%clk 0:00:06.1]} 40.
Qh2 {[%clk 0:00:09.5]} 40... Qf3 {[%clk 0:00:03.5]} 41. Ba7 {[%clk 0:00:08]}
41... Rc2 {[%clk 0:00:02.5]} 42. a4 {[%clk 0:00:06.2]} 42... Re2 {[%clk
0:00:02.5]} 43. Rf1 {[%clk 0:00:06.3]} 43... Rb2 {[%clk 0:00:02.2]} 44. axb5
{[%clk 0:00:05.8]} 44... Rxb3 {[%clk 0:00:02.6]} 45. b6 {[%clk 0:00:04.7]} 45...
Rb4 {[%clk 0:00:01.4]} 46. Qg2 {[%clk 0:00:02.7]} 46... Qxg2+ {[%clk 0:00:01.6]}
47. Kxg2 {[%clk 0:00:03.6]} 47... Rb3 {[%clk 0:00:02.2]} 48. Re1 {[%clk
0:00:03.3]} 48... Rc8 {[%clk 0:00:02.4]} 49. b7 {[%clk 0:00:03]} 49... Rxb7
{[%clk 0:00:01.9]} 50. Be3 {[%clk 0:00:03.9]} 50... Re7 {[%clk 0:00:02.4]} 51.
Rd1 {[%clk 0:00:04.2]} 51... Rc2 {[%clk 0:00:02.7]} 52. g5 {[%clk 0:00:04.4]}
52... Kf7 {[%clk 0:00:03.1]} 53. Rd4 {[%clk 0:00:04.7]} 53... e5 {[%clk
0:00:03.1]} 54. Rxh4 {[%clk 0:00:05.3]} 54... Rd7 {[%clk 0:00:03.7]} 55. Kf3
{[%clk 0:00:05.6]} 55... Rd3 {[%clk 0:00:03.9]} 56. Ra4 {[%clk 0:00:05]} 56...
Rd1 {[%clk 0:00:03.9]} 57. h4 {[%clk 0:00:05.4]} 57... Rdc1 {[%clk 0:00:03.1]}
58. Bxc1 {[%clk 0:00:04.4]} 58... Rxc1 {[%clk 0:00:04]} 59. h5 {[%clk
0:00:03.8]} 59... Rh1 {[%clk 0:00:04.2]} 60. Kg4 {[%clk 0:00:03.8]} 60... Rf1
{[%clk 0:00:04.2]} 61. Ra7+ {[%clk 0:00:02.5]} 61... Kg8 {[%clk 0:00:03.9]} 62.
g6 {[%clk 0:00:02.4]} 62... Kf8 {[%clk 0:00:04.4]} 63. Ra8+ {[%clk 0:00:02.7]}
63... Ke7 {[%clk 0:00:04.4]} 64. Ra7+ {[%clk 0:00:03.2]} 64... Kf8 {[%clk
0:00:04.6]} 65. Rf7+ {[%clk 0:00:04]} 65... Kg8 {[%clk 0:00:05.1]} 66. Kg5
{[%clk 0:00:04.4]} 66... Rg1+ {[%clk 0:00:05.2]} 67. Kh4 {[%clk 0:00:04]} 67...
Rh1+ {[%clk 0:00:05.6]} 68. Kg4 {[%clk 0:00:04.4]} 68... Rg1+ {[%clk 0:00:06]}
69. Kf3 {[%clk 0:00:04.8]} 69... Rh1 {[%clk 0:00:06.2]} 70. Rf5 {[%clk
0:00:05.2]} 70... Rh3+ {[%clk 0:00:05.7]} 71. Ke4 {[%clk 0:00:05.6]} 71... Rh4+
{[%clk 0:00:03.9]} 72. Kxe5 {[%clk 0:00:05.9]} 72... Ra4 {[%clk 0:00:04.2]} 73.
f3 {[%clk 0:00:05.4]} 73... Ra5+ {[%clk 0:00:04.6]} 74. Kf4 {[%clk 0:00:05.8]}
74... Ra4+ {[%clk 0:00:05]} 75. Kg5 {[%clk 0:00:06.3]} 75... Ra1 {[%clk
0:00:04.8]} 76. Rb5 {[%clk 0:00:06.2]} 76... Rg1+ {[%clk 0:00:05.3]} 77. Kf4
{[%clk 0:00:06.4]} 77... Kf8 {[%clk 0:00:05.2]} 78. Rb7 {[%clk 0:00:05.9]} 78...
Rh1 {[%clk 0:00:04.7]} 79. Rb5 {[%clk 0:00:05.1]} 79... Rg1 {[%clk 0:00:03.7]}
80. Ke3 {[%clk 0:00:04.8]} 80... Re1+ {[%clk 0:00:03.3]} 81. Kf2 {[%clk
0:00:05.1]} 81... Rh1 {[%clk 0:00:03.3]} 82. f4 {[%clk 0:00:05.2]} 82... Rh4
{[%clk 0:00:02.5]} 83. Kg3 {[%clk 0:00:05.4]} 83... Rh1 {[%clk 0:00:02.8]} 84.
Kg4 {[%clk 0:00:05.5]} 84... Rg1+ {[%clk 0:00:03.2]} 85. Kf5 {[%clk 0:00:05.9]}
85... Rh1 {[%clk 0:00:03.1]} 86. Ke6 {[%clk 0:00:06.3]} 86... Re1+ {[%clk
0:00:03.5]} 87. Re5 {[%clk 0:00:06.4]} 87... Rb1 {[%clk 0:00:02.9]} 88. f5
{[%clk 0:00:06.4]} 88... Rb6+ {[%clk 0:00:03.1]} 89. Kd5 {[%clk 0:00:06.6]}
89... Rb5+ {[%clk 0:00:03.7]} 90. Ke4 {[%clk 0:00:07]} 90... Rb4+ {[%clk
0:00:04.2]} 91. Kd5 {[%clk 0:00:06.1]} 91... Rb5+ {[%clk 0:00:04.6]} 92. Kd6
{[%clk 0:00:06.6]} 92... Rb6+ {[%clk 0:00:05]} 93. Kc7 {[%clk 0:00:07]} 93...
Rb3 {[%clk 0:00:04.5]} 94. Rc5 {[%clk 0:00:05.5]} 94... Rh3 {[%clk 0:00:03.9]}
95. Kd7 {[%clk 0:00:05.8]} 95... Rxh5 {[%clk 0:00:03.5]} 96. Rc8# {[%clk
0:00:05.6]} 1-0

[Event "*** SCC Grand Prix: Titled Tuesday Blitz"]
[Site "Chess.com"]
[Date "2020.08.11"]
[Round "4"]
[White "Vuk2000"]
[Black "Shield12"]
[Result "1/2-1/2"]
[WhiteElo "2715"]
[BlackElo "2853"]
[TimeControl "180+1"]
[EndTime "10:42:06 PDT"]
[Termination "Game drawn by stalemate"]

1. d4 {[%clk 0:03:00.9]} 1... Nf6 {[%clk 0:03:00.3]} 2. Bg5 {[%clk 0:03:01.2]}
2... d5 {[%clk 0:02:59.7]} 3. Bxf6 {[%clk 0:03:01]} 3... exf6 {[%clk 0:03:00.6]}
4. e3 {[%clk 0:03:01.3]} 4... c6 {[%clk 0:03:00.8]} 5. c4 {[%clk 0:03:01.2]}
5... dxc4 {[%clk 0:03:01.7]} 6. Bxc4 {[%clk 0:03:00.8]} 6... Bd6 {[%clk
0:03:02.6]} 7. Nc3 {[%clk 0:03:00.8]} 7... Nd7 {[%clk 0:03:03.2]} 8. Nf3 {[%clk
0:03:01.2]} 8... f5 {[%clk 0:03:03.7]} 9. O-O {[%clk 0:03:01.3]} 9... Nf6 {[%clk
0:03:04.3]} 10. Qc2 {[%clk 0:02:59.2]} 10... O-O {[%clk 0:03:04.1]} 11. Rfe1
{[%clk 0:02:57.8]} 11... Re8 {[%clk 0:03:00.2]} 12. a3 {[%clk 0:02:55.9]} 12...
a5 {[%clk 0:02:59.8]} 13. Rad1 {[%clk 0:02:53.7]} 13... Qe7 {[%clk 0:02:57.6]}
14. g3 {[%clk 0:02:33.5]} 14... g6 {[%clk 0:02:48.1]} 15. Nd2 {[%clk 0:02:27]}
15... Ne4 {[%clk 0:02:21]} 16. Bf1 {[%clk 0:02:22.3]} 16... Nxd2 {[%clk
0:02:15.2]} 17. Qxd2 {[%clk 0:02:12.6]} 17... Bd7 {[%clk 0:01:56.7]} 18. Bg2
{[%clk 0:01:55.2]} 18... Rad8 {[%clk 0:01:54.9]} 19. e4 {[%clk 0:01:49]} 19...
fxe4 {[%clk 0:01:53.3]} 20. Nxe4 {[%clk 0:01:49.9]} 20... Bg4 {[%clk 0:01:35]}
21. Rc1 {[%clk 0:01:32.8]} 21... Be6 {[%clk 0:01:15.4]} 22. Qxa5 {[%clk
0:01:26.1]} 22... Bc7 {[%clk 0:01:15.2]} 23. Qc3 {[%clk 0:01:16.6]} 23... Bd5
{[%clk 0:01:07.1]} 24. Nc5 {[%clk 0:01:13.6]} 24... Qf6 {[%clk 0:00:49.7]} 25.
Nxb7 {[%clk 0:01:05.7]} 25... Rxe1+ {[%clk 0:00:34.2]} 26. Rxe1 {[%clk
0:01:02.7]} 26... Bxg2 {[%clk 0:00:35.1]} 27. Nxd8 {[%clk 0:00:36]} 27... Bd5
{[%clk 0:00:34.6]} 28. Nb7 {[%clk 0:00:36.3]} 28... Qf5 {[%clk 0:00:33.4]} 29.
Qe3 {[%clk 0:00:26.9]} 29... h5 {[%clk 0:00:18.9]} 30. Nc5 {[%clk 0:00:25.8]}
30... h4 {[%clk 0:00:19.2]} 31. Qe8+ {[%clk 0:00:22.3]} 31... Kg7 {[%clk
0:00:18.6]} 32. Qd7 {[%clk 0:00:22.6]} 32... Qf3 {[%clk 0:00:17.8]} 33. Ne4
{[%clk 0:00:13.5]} 33... Bxe4 {[%clk 0:00:18.2]} 34. Rxe4 {[%clk 0:00:13.5]}
34... Qxe4 {[%clk 0:00:19.1]} 35. Qxc7 {[%clk 0:00:13.4]} 35... Qxd4 {[%clk
0:00:17.9]} 36. Qxc6 {[%clk 0:00:13.1]} 36... Qxb2 {[%clk 0:00:16.4]} 37. Qf3
{[%clk 0:00:11.8]} 37... h3 {[%clk 0:00:15.4]} 38. Qd3 {[%clk 0:00:09.4]} 38...
Qa1+ {[%clk 0:00:14.4]} 39. Qf1 {[%clk 0:00:09.3]} 39... Qxa3 {[%clk 0:00:14.6]}
40. Qxh3 {[%clk 0:00:09.9]} 40... Qc1+ {[%clk 0:00:15.2]} 41. Qf1 {[%clk
0:00:10.6]} 41... Qc6 {[%clk 0:00:16.1]} 42. Qe2 {[%clk 0:00:10.7]} 42... Qc3
{[%clk 0:00:16.1]} 43. Qe3 {[%clk 0:00:10.7]} 43... Qb2 {[%clk 0:00:16.3]} 44.
Kg2 {[%clk 0:00:11.2]} 44... Qb7+ {[%clk 0:00:16.2]} 45. Qf3 {[%clk 0:00:11.5]}
45... Qb2 {[%clk 0:00:16.8]} 46. h4 {[%clk 0:00:11.9]} 46... Qd4 {[%clk
0:00:16.4]} 47. Qe3 {[%clk 0:00:11.3]} 47... Qd5+ {[%clk 0:00:16.5]} 48. Kh2
{[%clk 0:00:11.9]} 48... Qf5 {[%clk 0:00:14.5]} 49. Qd4+ {[%clk 0:00:11.7]}
49... Kg8 {[%clk 0:00:13.8]} 50. Kg2 {[%clk 0:00:09.6]} 50... Qc2 {[%clk
0:00:13.7]} 51. Qd5 {[%clk 0:00:08.7]} 51... Qc3 {[%clk 0:00:12.5]} 52. h5
{[%clk 0:00:08.8]} 52... gxh5 {[%clk 0:00:13]} 53. Qg5+ {[%clk 0:00:09]} 53...
Kf8 {[%clk 0:00:12.9]} 54. Qd8+ {[%clk 0:00:09.6]} 54... Kg7 {[%clk 0:00:12.9]}
55. Qg5+ {[%clk 0:00:10.5]} 55... Kf8 {[%clk 0:00:13.4]} 56. Qxh5 {[%clk
0:00:10.9]} 56... Kg7 {[%clk 0:00:13.7]} 57. Qg5+ {[%clk 0:00:10.5]} 57... Kf8
{[%clk 0:00:14]} 58. Qd5 {[%clk 0:00:10.6]} 58... Kg7 {[%clk 0:00:13.6]} 59. f4
{[%clk 0:00:09.9]} 59... Qc2+ {[%clk 0:00:13.6]} 60. Kh3 {[%clk 0:00:09.6]}
60... Qh7+ {[%clk 0:00:13]} 61. Kg4 {[%clk 0:00:09.9]} 61... Qc2 {[%clk
0:00:11.7]} 62. Kf3 {[%clk 0:00:07]} 62... Qc3+ {[%clk 0:00:10.7]} 63. Kf2
{[%clk 0:00:07.1]} 63... Qc2+ {[%clk 0:00:10.5]} 64. Ke3 {[%clk 0:00:07.2]}
64... Qc3+ {[%clk 0:00:09.5]} 65. Qd3 {[%clk 0:00:06.8]} 65... Qe1+ {[%clk
0:00:09.1]} 66. Kf3 {[%clk 0:00:06.2]} 66... Qh1+ {[%clk 0:00:08.9]} 67. Kg4
{[%clk 0:00:06.7]} 67... Qa1 {[%clk 0:00:06.1]} 68. Qe4 {[%clk 0:00:04.8]} 68...
Qa2 {[%clk 0:00:05.5]} 69. Qe5+ {[%clk 0:00:04.2]} 69... f6 {[%clk 0:00:05]} 70.
Qe7+ {[%clk 0:00:03.9]} 70... Kg8 {[%clk 0:00:04.9]} 71. Qxf6 {[%clk 0:00:03.9]}
71... Qe2+ {[%clk 0:00:05.1]} 72. Kg5 {[%clk 0:00:04.2]} 72... Qf3 {[%clk
0:00:05.3]} 73. Qg6+ {[%clk 0:00:04.2]} 73... Kf8 {[%clk 0:00:05.3]} 74. Qf6+
{[%clk 0:00:04.5]} 74... Kg8 {[%clk 0:00:05.6]} 75. Qe6+ {[%clk 0:00:04.9]}
75... Kg7 {[%clk 0:00:05.7]} 76. Qe5+ {[%clk 0:00:05.1]} 76... Kf7 {[%clk
0:00:05.8]} 77. f5 {[%clk 0:00:05.4]} 77... Qf2 {[%clk 0:00:05.4]} 78. Qc7+
{[%clk 0:00:05.5]} 78... Kf8 {[%clk 0:00:05.5]} 79. Qd6+ {[%clk 0:00:05.7]}
79... Kf7 {[%clk 0:00:05.5]} 80. Qc7+ {[%clk 0:00:06]} 80... Kf8 {[%clk
0:00:05.8]} 81. Kg6 {[%clk 0:00:06.3]} 81... Ke8 {[%clk 0:00:04.9]} 82. Qc8+
{[%clk 0:00:06.3]} 82... Ke7 {[%clk 0:00:05.2]} 83. Qe6+ {[%clk 0:00:06.7]}
83... Kd8 {[%clk 0:00:05.2]} 84. Qd6+ {[%clk 0:00:07.1]} 84... Ke8 {[%clk
0:00:05.5]} 85. f6 {[%clk 0:00:06.7]} 85... Qc2+ {[%clk 0:00:05.6]} 86. Kg7
{[%clk 0:00:06.6]} 86... Qg6+ {[%clk 0:00:03.1]} 87. Kh8 {[%clk 0:00:02.6]}
87... Qg8+ {[%clk 0:00:03.3]} 88. Kxg8 {[%clk 0:00:02.7]} 1/2-1/2

[Event "*** SCC Grand Prix: Titled Tuesday Blitz"]
[Site "Chess.com"]
[Date "2020.08.11"]
[Round "5"]
[White "VishnuPrasanna"]
[Black "killer311"]
[Result "1-0"]
[WhiteElo "2684"]
[BlackElo "2445"]
[TimeControl "180+1"]
[EndTime "10:50:36 PDT"]
[Termination "VishnuPrasanna won by resignation"]

1. d4 {[%clk 0:03:00.9]} 1... d5 {[%clk 0:02:59.9]} 2. c4 {[%clk 0:02:59.1]}
2... c6 {[%clk 0:03:00]} 3. Nf3 {[%clk 0:02:59.5]} 3... Nf6 {[%clk 0:03:00.3]}
4. Nc3 {[%clk 0:03:00]} 4... e6 {[%clk 0:03:00.7]} 5. Bg5 {[%clk 0:03:00.3]}
5... h6 {[%clk 0:03:00.5]} 6. Bh4 {[%clk 0:03:00.3]} 6... dxc4 {[%clk
0:03:00.2]} 7. e4 {[%clk 0:03:00.7]} 7... g5 {[%clk 0:03:00.8]} 8. Bg3 {[%clk
0:03:00.8]} 8... b5 {[%clk 0:03:01.5]} 9. Be2 {[%clk 0:03:00.5]} 9... Bb7 {[%clk
0:03:01.6]} 10. Qc2 {[%clk 0:03:00.9]} 10... Nbd7 {[%clk 0:03:01.7]} 11. Nd2
{[%clk 0:03:00.4]} 11... Be7 {[%clk 0:02:59.4]} 12. O-O {[%clk 0:02:54.5]} 12...
h5 {[%clk 0:02:53.6]} 13. h3 {[%clk 0:02:49.4]} 13... h4 {[%clk 0:02:49.4]} 14.
Bh2 {[%clk 0:02:49.1]} 14... Qb6 {[%clk 0:02:47]} 15. Rad1 {[%clk 0:02:41.2]}
15... O-O-O {[%clk 0:02:38.7]} 16. b3 {[%clk 0:02:39.1]} 16... cxb3 {[%clk
0:02:35.9]} 17. Nxb3 {[%clk 0:02:38.9]} 17... Nf8 {[%clk 0:02:23.6]} 18. Nxb5
{[%clk 0:02:35.2]} 18... Ng6 {[%clk 0:02:16.1]} 19. Bc7 {[%clk 0:02:32.4]} 19...
Qa6 {[%clk 0:02:12.8]} 20. Bxd8 {[%clk 0:02:29]} 20... Rxd8 {[%clk 0:02:09.4]}
21. Nd6+ {[%clk 0:02:28]} 1-0

[Event "*** SCC Grand Prix: Titled Tuesday Blitz"]
[Site "Chess.com"]
[Date "2020.08.11"]
[Round "5"]
[White "Tekushka"]
[Black "AlexSuv"]
[Result "1-0"]
[WhiteElo "2354"]
[BlackElo "2486"]
[TimeControl "180+1"]
[EndTime "10:50:37 PDT"]
[Termination "Tekushka won by resignation"]

1. e4 {[%clk 0:03:00.9]} 1... c5 {[%clk 0:02:59.8]} 2. Nf3 {[%clk 0:03:00.3]}
2... e6 {[%clk 0:03:00.3]} 3. d4 {[%clk 0:03:00]} 3... cxd4 {[%clk 0:03:01.2]}
4. Nxd4 {[%clk 0:03:00.2]} 4... Nc6 {[%clk 0:03:01.9]} 5. Nc3 {[%clk 0:03:00.5]}
5... Qc7 {[%clk 0:03:02.3]} 6. a3 {[%clk 0:03:00.4]} 6... a6 {[%clk 0:03:01.5]}
7. Be3 {[%clk 0:02:58.3]} 7... b5 {[%clk 0:03:01.8]} 8. Nxc6 {[%clk 0:02:57.3]}
8... Qxc6 {[%clk 0:02:56.4]} 9. Be2 {[%clk 0:02:56.9]} 9... Bb7 {[%clk
0:02:55.8]} 10. O-O {[%clk 0:02:57.1]} 10... Nf6 {[%clk 0:02:54]} 11. Bf3 {[%clk
0:02:49.5]} 11... e5 {[%clk 0:02:37.2]} 12. Bg5 {[%clk 0:02:47.4]} 12... h6
{[%clk 0:02:23.4]} 13. Bxf6 {[%clk 0:02:46.6]} 13... Qxf6 {[%clk 0:02:22.9]} 14.
Nd5 {[%clk 0:02:41.7]} 14... Qc6 {[%clk 0:02:13.8]} 15. c3 {[%clk 0:02:30.4]}
15... Bc5 {[%clk 0:02:11.4]} 16. Qd3 {[%clk 0:02:20.6]} 16... O-O {[%clk
0:02:10.1]} 17. b4 {[%clk 0:02:20.3]} 17... Ba7 {[%clk 0:02:06.3]} 18. Ne7+
{[%clk 0:02:19.6]} 1-0

[Event "*** SCC Grand Prix: Titled Tuesday Blitz"]
[Site "Chess.com"]
[Date "2020.08.11"]
[Round "5"]
[White "albano87"]
[Black "Micki-taryan"]
[Result "0-1"]
[WhiteElo "2538"]
[BlackElo "3043"]
[TimeControl "180+1"]
[EndTime "10:50:41 PDT"]
[Termination "Micki-taryan won by resignation"]

1. d4 {[%clk 0:03:00.9]} 1... Nf6 {[%clk 0:02:59.8]} 2. Nf3 {[%clk 0:03:01.4]}
2... e6 {[%clk 0:02:59.6]} 3. g3 {[%clk 0:03:01.9]} 3... b5 {[%clk 0:02:59.5]}
4. Bg2 {[%clk 0:03:02.1]} 4... Bb7 {[%clk 0:03:00.1]} 5. O-O {[%clk 0:03:02.9]}
5... c5 {[%clk 0:03:00.6]} 6. a4 {[%clk 0:03:02.3]} 6... b4 {[%clk 0:03:00.5]}
7. c4 {[%clk 0:03:02.4]} 7... cxd4 {[%clk 0:02:58.9]} 8. Qxd4 {[%clk 0:03:01.7]}
8... Na6 {[%clk 0:02:56.9]} 9. b3 {[%clk 0:02:55.8]} 9... Nc5 {[%clk 0:02:56.9]}
10. Nbd2 {[%clk 0:02:54.7]} 10... d6 {[%clk 0:02:56.7]} 11. Bb2 {[%clk
0:02:51.5]} 11... Be7 {[%clk 0:02:56.8]} 12. Nh4 {[%clk 0:02:27.3]} 12... e5
{[%clk 0:02:41.8]} 13. Qxc5 {[%clk 0:02:05.2]} 13... dxc5 {[%clk 0:02:38.9]} 14.
Bxb7 {[%clk 0:02:05.7]} 14... Qxd2 {[%clk 0:02:28.9]} 15. Bc1 {[%clk 0:01:54]}
15... Qc3 {[%clk 0:02:20.3]} 0-1

[Event "*** SCC Grand Prix: Titled Tuesday Blitz"]
[Site "Chess.com"]
[Date "2020.08.11"]
[Round "5"]
[White "kuban1991"]
[Black "Diego_FloresQ"]
[Result "1-0"]
[WhiteElo "2735"]
[BlackElo "2468"]
[TimeControl "180+1"]
[EndTime "10:51:12 PDT"]
[Termination "kuban1991 won by resignation"]

1. Nf3 {[%clk 0:02:58.3]} 1... c5 {[%clk 0:02:58]} 2. g3 {[%clk 0:02:55.1]} 2...
Nc6 {[%clk 0:02:56.2]} 3. Bg2 {[%clk 0:02:55.6]} 3... g6 {[%clk 0:02:56.4]} 4.
O-O {[%clk 0:02:56]} 4... Bg7 {[%clk 0:02:56.5]} 5. c4 {[%clk 0:02:56.9]} 5...
e6 {[%clk 0:02:55.4]} 6. Nc3 {[%clk 0:02:56.9]} 6... Nge7 {[%clk 0:02:55.6]} 7.
e3 {[%clk 0:02:54.1]} 7... d5 {[%clk 0:02:55.1]} 8. b3 {[%clk 0:02:53.7]} 8...
O-O {[%clk 0:02:29.3]} 9. Ba3 {[%clk 0:02:53]} 9... dxc4 {[%clk 0:02:25]} 10.
bxc4 {[%clk 0:02:53.7]} 10... b6 {[%clk 0:02:25.1]} 11. d4 {[%clk 0:02:51.6]}
11... cxd4 {[%clk 0:02:24.5]} 12. Nxd4 {[%clk 0:02:40.3]} 12... Bxd4 {[%clk
0:02:13.5]} 13. exd4 {[%clk 0:02:38.6]} 13... Bb7 {[%clk 0:02:14]} 14. d5 {[%clk
0:02:20.7]} 14... exd5 {[%clk 0:01:56.4]} 15. Nxd5 {[%clk 0:02:20.4]} 15... Nxd5
{[%clk 0:01:55.1]} 16. cxd5 {[%clk 0:02:16.4]} 16... Ne7 {[%clk 0:01:44.7]} 17.
d6 {[%clk 0:02:16.3]} 17... Nc6 {[%clk 0:01:44.5]} 18. d7 {[%clk 0:02:16.2]} 1-0

[Event "*** SCC Grand Prix: Titled Tuesday Blitz"]
[Site "Chess.com"]
[Date "2020.08.11"]
[Round "5"]
[White "maximnovik"]
[Black "coalescenet"]
[Result "1-0"]
[WhiteElo "2456"]
[BlackElo "1947"]
[TimeControl "180+1"]
[EndTime "10:51:15 PDT"]
[Termination "maximnovik won by resignation"]

1. d4 {[%clk 0:03:00.9]} 1... d5 {[%clk 0:02:50.6]} 2. c4 {[%clk 0:03:00.2]}
2... e6 {[%clk 0:02:50.4]} 3. Nc3 {[%clk 0:03:00.6]} 3... Be7 {[%clk 0:02:50]}
4. cxd5 {[%clk 0:03:00.7]} 4... exd5 {[%clk 0:02:50]} 5. Bf4 {[%clk 0:03:01.2]}
5... Nf6 {[%clk 0:02:49.6]} 6. Qc2 {[%clk 0:02:58.2]} 6... c6 {[%clk 0:02:47.2]}
7. e3 {[%clk 0:02:58.2]} 7... Nbd7 {[%clk 0:02:46.4]} 8. Bd3 {[%clk 0:02:58]}
8... Nf8 {[%clk 0:02:46.8]} 9. Nge2 {[%clk 0:02:56.8]} 9... Ne6 {[%clk
0:02:46.9]} 10. Be5 {[%clk 0:02:53.5]} 10... Nd7 {[%clk 0:02:39]} 11. Bg3 {[%clk
0:02:52.5]} 11... g6 {[%clk 0:02:30.8]} 12. O-O-O {[%clk 0:02:48.5]} 12... Nf6
{[%clk 0:02:23.1]} 13. Be5 {[%clk 0:02:29.5]} 13... O-O {[%clk 0:02:22.4]} 14.
h4 {[%clk 0:02:28.2]} 14... Ng7 {[%clk 0:02:17.9]} 15. Nf4 {[%clk 0:02:24.6]}
15... h5 {[%clk 0:02:07.8]} 16. f3 {[%clk 0:02:22.7]} 16... Nd7 {[%clk
0:01:59.7]} 17. Bxg7 {[%clk 0:02:18.3]} 17... Kxg7 {[%clk 0:01:59.6]} 18. Bxg6
{[%clk 0:02:18.6]} 18... Bxh4 {[%clk 0:01:56.5]} 19. Nxh5+ {[%clk 0:02:08.3]}
19... Kh6 {[%clk 0:01:56.4]} 20. Nf4 {[%clk 0:02:04.3]} 20... Kg7 {[%clk
0:01:56.6]} 21. Bxf7 {[%clk 0:01:58.3]} 21... Kxf7 {[%clk 0:01:55.1]} 1-0

[Event "*** SCC Grand Prix: Titled Tuesday Blitz"]
[Site "Chess.com"]
[Date "2020.08.11"]
[Round "5"]
[White "ace_mar"]
[Black "TurboSteen"]
[Result "1-0"]
[WhiteElo "2465"]
[BlackElo "2017"]
[TimeControl "180+1"]
[EndTime "10:51:50 PDT"]
[Termination "ace_mar won by resignation"]

1. d4 {[%clk 0:03:00.9]} 1... Nf6 {[%clk 0:02:51.6]} 2. c4 {[%clk 0:02:59.1]}
2... g6 {[%clk 0:02:43.3]} 3. g3 {[%clk 0:02:59.1]} 3... d5 {[%clk 0:02:42.3]}
4. cxd5 {[%clk 0:02:59.1]} 4... Nxd5 {[%clk 0:02:41.2]} 5. Bg2 {[%clk
0:02:59.2]} 5... Nb6 {[%clk 0:02:40.1]} 6. Nf3 {[%clk 0:02:58.5]} 6... Bg7
{[%clk 0:02:38.8]} 7. Nc3 {[%clk 0:02:56.7]} 7... O-O {[%clk 0:02:37.3]} 8. O-O
{[%clk 0:02:56.2]} 8... Nc6 {[%clk 0:02:35.9]} 9. e3 {[%clk 0:02:55.1]} 9... e5
{[%clk 0:02:34.3]} 10. d5 {[%clk 0:02:55.3]} 10... Na5 {[%clk 0:02:00.6]} 11. e4
{[%clk 0:02:54.7]} 11... c6 {[%clk 0:01:38.8]} 12. Qc2 {[%clk 0:02:24.2]} 12...
cxd5 {[%clk 0:01:19.9]} 13. exd5 {[%clk 0:02:24.7]} 13... Nxd5 {[%clk
0:01:18.3]} 14. Rd1 {[%clk 0:02:24.2]} 14... Nb4 {[%clk 0:01:17.9]} 15. Qa4
{[%clk 0:02:20.4]} 15... Qb6 {[%clk 0:01:15.6]} 16. Be3 {[%clk 0:02:17]} 1-0